[Event "Titled Tuesday Blitz July 20 2021"]
[White "Tarigan, Gilbert Elroy"]
[Black "Oliveira, Silvio Eduardo"]
[WhiteFideId "7108133"]
[BlackFideId "2111560"]
[WhiteElo "1908"]
[BlackElo "2302"]
[Result "0-1"]
[Round "04"]
[TimeControl "180+1"]
[Date "2021.07.20"]
[WhiteClock "0:00:01"]
[BlackClock "0:00:10"]

1. e4 {[%clk 0:01:19]}  e5 {[%clk 0:02:59]} 2. Nc3 {[%clk 0:01:20]}  Nf6 {[%clk 0:02:58]} 3. Nf3 {[%clk 0:01:19]}  Nc6 {[%clk 0:02:58]} 4. Bb5 {[%clk 0:01:18]}  Nd4 {[%clk 0:02:57]} 5. Bc4 {[%clk 0:01:14]}  Bc5 {[%clk 0:02:57]} 6. O-O {[%clk 0:01:11]}  d6 {[%clk 0:02:51]} 7. h3 {[%clk 0:01:11]}  O-O {[%clk 0:02:51]} 8. d3 {[%clk 0:01:08]}  a5 {[%clk 0:02:48]} 9. a3 {[%clk 0:01:07]}  c6 {[%clk 0:02:43]} 10. Ba2 {[%clk 0:01:05]}  h6 {[%clk 0:02:42]} 11. Be3 {[%clk 0:01:03]}  Ba7 {[%clk 0:02:31]} 12. Bxd4 {[%clk 0:01:00]}  exd4 {[%clk 0:02:30]} 13. Ne2 {[%clk 0:01:01]}  d5 {[%clk 0:02:19]} 14. exd5 {[%clk 0:00:51]}  Nxd5 {[%clk 0:02:16]} 15. Nexd4 {[%clk 0:00:51]}  Nf4 {[%clk 0:02:08]} 16. Ne2 {[%clk 0:00:50]}  Nxh3+ {[%clk 0:01:52]} 17. gxh3 {[%clk 0:00:50]}  Bxh3 {[%clk 0:01:53]} 18. Nf4 {[%clk 0:00:47]}  Bg4 {[%clk 0:01:35]} 19. Ng6 {[%clk 0:00:33]}  Qf6 {[%clk 0:01:26]} 20. Nge5 {[%clk 0:00:28]}  Bh5 {[%clk 0:01:24]} 21. Kg2 {[%clk 0:00:24]}  Rfe8 {[%clk 0:01:12]} 22. d4 {[%clk 0:00:18]}  Rxe5 {[%clk 0:00:36]} 23. dxe5 {[%clk 0:00:17]}  Qf4 {[%clk 0:00:37]} 24. e6 {[%clk 0:00:09]}  fxe6 {[%clk 0:00:27]} 25. Bxe6+ {[%clk 0:00:09]}  Kh8 {[%clk 0:00:28]} 26. Rh1 {[%clk 0:00:06]}  Bg4 {[%clk 0:00:20]} 27. Bxg4 {[%clk 0:00:06]}  Qxg4+ {[%clk 0:00:21]} 28. Kf1 {[%clk 0:00:07]}  Rf8 {[%clk 0:00:21]} 29. Qe2 {[%clk 0:00:03]}  Rxf3 {[%clk 0:00:18]} 30. Rh2 {[%clk 0:00:03]}  Qf4 {[%clk 0:00:15]} 31. Rg2 {[%clk 0:00:02]}  Rh3 {[%clk 0:00:13]} 32. Ke1 {[%clk 0:00:01]}  Rh1+ {[%clk 0:00:10]} 0-1


[Site "https://www.chess.com"]

[Event "Titled Tuesday Blitz July 20 2021"]
[White "Timmermans, Mark"]
[Black "Skatchkov, Valery"]
[WhiteFideId "1026399"]
[BlackFideId "24195812"]
[WhiteElo "2460"]
[BlackElo "2199"]
[Result "1-0"]
[Round "04"]
[TimeControl "180+1"]
[Date "2021.07.21"]
[WhiteClock "0:00:58"]
[BlackClock "0:00:44"]

1. b4 {[%clk 0:03:00]}  e5 {[%clk 0:02:59]} 2. Bb2 {[%clk 0:02:59]}  Nf6 {[%clk 0:02:59]} 3. Bxe5 {[%clk 0:02:58]}  Bxb4 {[%clk 0:02:59]} 4. Nc3 {[%clk 0:02:58]}  O-O {[%clk 0:02:54]} 5. Bxf6 {[%clk 0:02:55]}  Qxf6 {[%clk 0:02:52]} 6. Nd5 {[%clk 0:02:56]}  Qd6 {[%clk 0:02:50]} 7. c4 {[%clk 0:02:50]}  Ba5 {[%clk 0:02:48]} 8. e3 {[%clk 0:02:46]}  c6 {[%clk 0:02:44]} 9. Nf4 {[%clk 0:02:45]}  Qf6 {[%clk 0:02:40]} 10. Nf3 {[%clk 0:02:44]}  d6 {[%clk 0:02:39]} 11. Be2 {[%clk 0:02:41]}  Bf5 {[%clk 0:02:39]} 12. Nh5 {[%clk 0:02:33]}  Qe7 {[%clk 0:02:23]} 13. O-O {[%clk 0:02:31]}  Nd7 {[%clk 0:02:23]} 14. Ng3 {[%clk 0:02:30]}  Bg6 {[%clk 0:02:23]} 15. d4 {[%clk 0:02:25]}  Rab8 {[%clk 0:02:20]} 16. Bd3 {[%clk 0:02:24]}  c5 {[%clk 0:02:00]} 17. Rb1 {[%clk 0:02:01]}  a6 {[%clk 0:01:16]} 18. Qc2 {[%clk 0:01:51]}  Rfc8 {[%clk 0:01:15]} 19. Nf5 {[%clk 0:01:42]}  Qf6 {[%clk 0:01:14]} 20. N3h4 {[%clk 0:01:39]}  d5 {[%clk 0:01:10]} 21. cxd5 {[%clk 0:01:09]}  cxd4 {[%clk 0:00:56]} 22. Qa4 {[%clk 0:01:09]}  Nc5 {[%clk 0:00:57]} 23. Qxa5 {[%clk 0:00:59]}  Nxd3 {[%clk 0:00:57]} 24. Nxg6 {[%clk 0:01:00]}  dxe3 {[%clk 0:00:44]} 25. Nfe7+ {[%clk 0:00:58]} 1-0


[Site "https://www.chess.com"]

[Event "Titled Tuesday Blitz July 20 2021"]
[White "Tologon tegin, Semetei"]
[Black "Ibrahimli, Murad"]
[WhiteFideId "13800574"]
[BlackFideId "13410229"]
[WhiteElo "2224"]
[BlackElo "2109"]
[Result "0-1"]
[Round "04"]
[TimeControl "180+1"]
[Date "2021.07.21"]
[WhiteClock "0:00:04"]
[BlackClock "0:00:13"]

1. d4 {[%clk 0:03:00]}  Nf6 {[%clk 0:02:59]} 2. c4 {[%clk 0:03:01]}  g6 {[%clk 0:03:00]} 3. Nc3 {[%clk 0:03:01]}  Bg7 {[%clk 0:03:00]} 4. e4 {[%clk 0:03:01]}  d6 {[%clk 0:03:01]} 5. Nf3 {[%clk 0:03:01]}  O-O {[%clk 0:03:01]} 6. Be2 {[%clk 0:03:01]}  e5 {[%clk 0:03:01]} 7. O-O {[%clk 0:02:59]}  Nbd7 {[%clk 0:03:02]} 8. Be3 {[%clk 0:02:53]}  Re8 {[%clk 0:03:01]} 9. d5 {[%clk 0:02:50]}  Nc5 {[%clk 0:03:00]} 10. Nd2 {[%clk 0:02:50]}  a5 {[%clk 0:02:59]} 11. b3 {[%clk 0:02:45]}  h5 {[%clk 0:02:54]} 12. h3 {[%clk 0:02:34]}  Bd7 {[%clk 0:02:54]} 13. a3 {[%clk 0:02:34]}  b6 {[%clk 0:02:00]} 14. Qc2 {[%clk 0:02:21]}  Kh7 {[%clk 0:01:53]} 15. b4 {[%clk 0:02:21]}  Na6 {[%clk 0:01:54]} 16. Rab1 {[%clk 0:02:14]}  Bh6 {[%clk 0:01:53]} 17. f4 {[%clk 0:02:07]}  axb4 {[%clk 0:01:46]} 18. axb4 {[%clk 0:02:06]}  Qe7 {[%clk 0:01:34]} 19. Rf3 {[%clk 0:01:47]}  exf4 {[%clk 0:01:22]} 20. Bxf4 {[%clk 0:01:47]}  Bxf4 {[%clk 0:01:23]} 21. Rxf4 {[%clk 0:01:47]}  Ng8 {[%clk 0:01:21]} 22. Rbf1 {[%clk 0:01:21]}  Rf8 {[%clk 0:01:21]} 23. Qb2 {[%clk 0:01:07]}  f6 {[%clk 0:01:20]} 24. Bd3 {[%clk 0:00:46]}  Kg7 {[%clk 0:01:09]} 25. Kh1 {[%clk 0:00:37]}  g5 {[%clk 0:00:58]} 26. R4f2 {[%clk 0:00:35]}  Nh6 {[%clk 0:00:57]} 27. c5 {[%clk 0:00:29]}  bxc5 {[%clk 0:00:55]} 28. Bxa6 {[%clk 0:00:28]}  cxb4 {[%clk 0:00:44]} 29. Nb5 {[%clk 0:00:25]}  Rxa6 {[%clk 0:00:43]} 30. Nxc7 {[%clk 0:00:25]}  Ra7 {[%clk 0:00:43]} 31. Ne6+ {[%clk 0:00:25]}  Bxe6 {[%clk 0:00:43]} 32. dxe6 {[%clk 0:00:26]}  Qxe6 {[%clk 0:00:44]} 33. Qxb4 {[%clk 0:00:25]}  g4 {[%clk 0:00:38]} 34. Qd4 {[%clk 0:00:22]}  Raf7 {[%clk 0:00:35]} 35. Nc4 {[%clk 0:00:12]}  gxh3 {[%clk 0:00:35]} 36. Nxd6 {[%clk 0:00:12]}  Ng4 {[%clk 0:00:18]} 37. Nf5+ {[%clk 0:00:09]}  Kh7 {[%clk 0:00:18]} 38. Rf3 {[%clk 0:00:09]}  hxg2+ {[%clk 0:00:17]} 39. Kxg2 {[%clk 0:00:10]}  Rg8 {[%clk 0:00:17]} 40. Rg3 {[%clk 0:00:10]}  Rd7 {[%clk 0:00:16]} 41. Qb4 {[%clk 0:00:06]}  Rgd8 {[%clk 0:00:16]} 42. Rh1 {[%clk 0:00:06]}  Rd2+ {[%clk 0:00:16]} 43. Kh3 {[%clk 0:00:06]}  Nf2+ {[%clk 0:00:14]} 44. Kg2 {[%clk 0:00:06]}  Nxe4+ {[%clk 0:00:12]} 45. Kf3 {[%clk 0:00:04]}  Qxf5+ {[%clk 0:00:12]} 46. Ke3 {[%clk 0:00:04]}  R8d3# {[%clk 0:00:13]} 0-1


[Site "https://www.chess.com"]

[Event "Titled Tuesday Blitz July 20 2021"]
[White "Trakru, Rohun"]
[Black "Molina, Roberto Junio Brito"]
[WhiteFideId "2097613"]
[BlackFideId "2109450"]
[WhiteElo "1746"]
[BlackElo "2402"]
[Result "1-0"]
[Round "04"]
[TimeControl "180+1"]
[Date "2021.07.20"]
[WhiteClock "0:01:47"]
[BlackClock "0:01:53"]

1. d4 {[%clk 0:03:00]}  d5 {[%clk 0:02:59]} 2. Bf4 {[%clk 0:03:00]}  Nf6 {[%clk 0:02:57]} 3. e3 {[%clk 0:03:00]}  c5 {[%clk 0:02:57]} 4. dxc5 {[%clk 0:03:01]}  Qa5+ {[%clk 0:02:49]} 5. Nc3 {[%clk 0:02:59]}  Qxc5 {[%clk 0:02:47]} 6. Nb5 {[%clk 0:02:50]}  Na6 {[%clk 0:02:46]} 7. a4 {[%clk 0:02:38]}  e6 {[%clk 0:02:42]} 8. c3 {[%clk 0:02:29]}  Be7 {[%clk 0:02:40]} 9. Nf3 {[%clk 0:02:26]}  O-O {[%clk 0:02:40]} 10. b4 {[%clk 0:02:12]}  Qb6 {[%clk 0:02:34]} 11. a5 {[%clk 0:02:12]}  Qd8 {[%clk 0:02:33]} 12. Ne5 {[%clk 0:02:11]}  Nd7 {[%clk 0:02:26]} 13. Bd3 {[%clk 0:02:01]}  Nxe5 {[%clk 0:02:23]} 14. Bxe5 {[%clk 0:02:02]}  f6 {[%clk 0:02:22]} 15. Qh5 {[%clk 0:01:51]}  fxe5 {[%clk 0:01:53]} 16. Bxh7+ {[%clk 0:01:47]} 1-0


[Site "https://www.chess.com"]

[Event "Titled Tuesday Blitz July 20 2021"]
[White "Triapishko, Alexandr"]
[Black "Arabidze, Meri"]
[WhiteFideId "14122286"]
[BlackFideId "13604040"]
[WhiteElo "2490"]
[BlackElo "2432"]
[Result "1/2-1/2"]
[Round "04"]
[TimeControl "180+1"]
[Date "2021.07.20"]
[WhiteClock "0:00:04"]
[BlackClock "0:00:16"]

1. Nf3 {[%clk 0:02:24]}  d5 {[%clk 0:02:57]} 2. g3 {[%clk 0:02:24]}  Nf6 {[%clk 0:02:57]} 3. Bg2 {[%clk 0:02:24]}  e6 {[%clk 0:02:58]} 4. c4 {[%clk 0:02:24]}  dxc4 {[%clk 0:02:58]} 5. O-O {[%clk 0:02:25]}  Nbd7 {[%clk 0:02:58]} 6. Qa4 {[%clk 0:02:23]}  c5 {[%clk 0:02:58]} 7. Qxc4 {[%clk 0:02:23]}  b6 {[%clk 0:02:59]} 8. Nd4 {[%clk 0:02:12]}  Ne5 {[%clk 0:02:59]} 9. Qc2 {[%clk 0:02:05]}  Rb8 {[%clk 0:02:45]} 10. Nc6 {[%clk 0:01:59]}  Nxc6 {[%clk 0:02:44]} 11. Bxc6+ {[%clk 0:01:59]}  Bd7 {[%clk 0:02:45]} 12. Bg2 {[%clk 0:02:00]}  Be7 {[%clk 0:02:41]} 13. a4 {[%clk 0:01:58]}  O-O {[%clk 0:02:40]} 14. Nc3 {[%clk 0:01:56]}  Rc8 {[%clk 0:02:41]} 15. d3 {[%clk 0:01:41]}  Bc6 {[%clk 0:02:40]} 16. Bxc6 {[%clk 0:01:35]}  Rxc6 {[%clk 0:02:41]} 17. a5 {[%clk 0:01:35]}  Nd5 {[%clk 0:02:37]} 18. Qa4 {[%clk 0:01:28]}  Rc8 {[%clk 0:02:32]} 19. a6 {[%clk 0:01:24]}  Nxc3 {[%clk 0:02:17]} 20. bxc3 {[%clk 0:01:19]}  c4 {[%clk 0:02:18]} 21. d4 {[%clk 0:01:18]}  Qd5 {[%clk 0:02:17]} 22. Rb1 {[%clk 0:01:17]}  Qe4 {[%clk 0:02:14]} 23. Rb2 {[%clk 0:01:14]}  e5 {[%clk 0:02:13]} 24. f3 {[%clk 0:01:05]}  Qf5 {[%clk 0:01:45]} 25. e4 {[%clk 0:00:56]}  Qh3 {[%clk 0:01:45]} 26. Be3 {[%clk 0:00:49]}  exd4 {[%clk 0:01:44]} 27. Bxd4 {[%clk 0:00:48]}  Rfd8 {[%clk 0:01:32]} 28. Rd1 {[%clk 0:00:42]}  h5 {[%clk 0:01:31]} 29. Qb5 {[%clk 0:00:29]}  Bc5 {[%clk 0:01:26]} 30. Rbd2 {[%clk 0:00:27]}  Bxd4+ {[%clk 0:01:13]} 31. Rxd4 {[%clk 0:00:27]}  Rxd4 {[%clk 0:01:12]} 32. Rxd4 {[%clk 0:00:28]}  h4 {[%clk 0:01:12]} 33. Qg5 {[%clk 0:00:22]}  hxg3 {[%clk 0:01:10]} 34. hxg3 {[%clk 0:00:21]}  b5 {[%clk 0:01:01]} 35. e5 {[%clk 0:00:06]}  Qh6 {[%clk 0:01:01]} 36. Qxh6 {[%clk 0:00:04]}  gxh6 {[%clk 0:01:01]} 37. Kf2 {[%clk 0:00:02]}  Rc6 {[%clk 0:01:01]} 38. Rd6 {[%clk 0:00:02]}  Rc7 {[%clk 0:00:44]} 39. Ke3 {[%clk 0:00:02]}  Kg7 {[%clk 0:00:45]} 40. f4 {[%clk 0:00:02]}  b4 {[%clk 0:00:43]} 41. cxb4 {[%clk 0:00:03]}  c3 {[%clk 0:00:43]} 42. Rd1 {[%clk 0:00:03]}  Rc4 {[%clk 0:00:40]} 43. b5 {[%clk 0:00:03]}  Rb4 {[%clk 0:00:40]} 44. Rc1 {[%clk 0:00:04]}  Rxb5 {[%clk 0:00:39]} 45. Rxc3 {[%clk 0:00:04]}  Ra5 {[%clk 0:00:32]} 46. Rc6 {[%clk 0:00:04]}  Ra3+ {[%clk 0:00:33]} 47. Ke4 {[%clk 0:00:04]}  Rxg3 {[%clk 0:00:31]} 48. Rc7 {[%clk 0:00:05]}  Ra3 {[%clk 0:00:31]} 49. Rxa7 {[%clk 0:00:05]}  h5 {[%clk 0:00:30]} 50. f5 {[%clk 0:00:04]}  Ra4+ {[%clk 0:00:29]} 51. Kf3 {[%clk 0:00:04]}  Ra5 {[%clk 0:00:24]} 52. Kf4 {[%clk 0:00:04]}  Kg8 {[%clk 0:00:21]} 53. Kg5 {[%clk 0:00:02]}  Rxe5 {[%clk 0:00:20]} 54. Rb7 {[%clk 0:00:02]}  Ra5 {[%clk 0:00:19]} 55. a7 {[%clk 0:00:02]}  Kg7 {[%clk 0:00:20]} 56. Kxh5 {[%clk 0:00:03]}  Rxf5+ {[%clk 0:00:19]} 57. Kg4 {[%clk 0:00:03]}  Ra5 {[%clk 0:00:20]} 58. Kf4 {[%clk 0:00:04]}  Kg6 {[%clk 0:00:18]} 59. Ke4 {[%clk 0:00:04]}  f5+ {[%clk 0:00:17]} 60. Kd4 {[%clk 0:00:04]}  Kg5 {[%clk 0:00:17]} 61. Kc4 {[%clk 0:00:04]}  Kf4 {[%clk 0:00:18]} 62. Kb4 {[%clk 0:00:03]}  Ra1 {[%clk 0:00:18]} 63. Kb5 {[%clk 0:00:02]}  Kf3 {[%clk 0:00:17]} 64. Kc6 {[%clk 0:00:02]}  f4 {[%clk 0:00:17]} 65. Kc7 {[%clk 0:00:01]}  Rxa7 {[%clk 0:00:17]} 66. Rxa7 {[%clk 0:00:02]}  Kg2 {[%clk 0:00:17]} 67. Kd6 {[%clk 0:00:02]}  f3 {[%clk 0:00:18]} 68. Rg7+ {[%clk 0:00:01]}  Kh3 {[%clk 0:00:15]} 69. Ke5 {[%clk 0:00:01]}  f2 {[%clk 0:00:15]} 70. Rf7 {[%clk 0:00:02]}  Kg2 {[%clk 0:00:15]} 71. Ke4 {[%clk 0:00:03]}  f1=Q {[%clk 0:00:15]} 72. Rxf1 {[%clk 0:00:04]}  Kxf1 {[%clk 0:00:16]} 1/2-1/2


[Site "https://www.chess.com"]

[Event "Titled Tuesday Blitz July 20 2021"]
[White "Tristan, Leonardo"]
[Black "Kim, Sergey"]
[WhiteFideId "113816"]
[BlackFideId "13700570"]
[WhiteElo "2404"]
[BlackElo "2512"]
[Result "1-0"]
[Round "04"]
[TimeControl "180+1"]
[Date "2021.07.21"]
[WhiteClock "0:00:56"]
[BlackClock "0:00:22"]

1. d4 {[%clk 0:03:00]}  Nf6 {[%clk 0:02:59]} 2. Bg5 {[%clk 0:03:01]}  g6 {[%clk 0:02:59]} 3. Bxf6 {[%clk 0:03:00]}  exf6 {[%clk 0:03:00]} 4. e3 {[%clk 0:02:59]}  h5 {[%clk 0:03:00]} 5. g3 {[%clk 0:02:55]}  h4 {[%clk 0:02:59]} 6. Bg2 {[%clk 0:02:55]}  d6 {[%clk 0:02:59]} 7. Ne2 {[%clk 0:02:55]}  f5 {[%clk 0:02:58]} 8. c4 {[%clk 0:02:54]}  Nd7 {[%clk 0:02:58]} 9. Nbc3 {[%clk 0:02:54]}  Nf6 {[%clk 0:02:58]} 10. Qd3 {[%clk 0:02:54]}  c6 {[%clk 0:02:56]} 11. O-O-O {[%clk 0:02:54]}  Qa5 {[%clk 0:02:55]} 12. Kb1 {[%clk 0:02:54]}  Bg7 {[%clk 0:02:53]} 13. Ka1 {[%clk 0:02:43]}  Bd7 {[%clk 0:02:53]} 14. e4 {[%clk 0:02:37]}  O-O-O {[%clk 0:02:40]} 15. f3 {[%clk 0:02:28]}  h3 {[%clk 0:02:31]} 16. Bf1 {[%clk 0:02:27]}  fxe4 {[%clk 0:02:31]} 17. fxe4 {[%clk 0:02:27]}  Ng4 {[%clk 0:02:30]} 18. Qf3 {[%clk 0:02:22]}  f5 {[%clk 0:02:26]} 19. Nf4 {[%clk 0:02:22]}  Rhe8 {[%clk 0:02:11]} 20. Bxh3 {[%clk 0:02:19]}  Nf6 {[%clk 0:01:29]} 21. exf5 {[%clk 0:02:05]}  gxf5 {[%clk 0:01:28]} 22. Rhf1 {[%clk 0:02:03]}  Ne4 {[%clk 0:01:22]} 23. Nh5 {[%clk 0:01:55]}  Nxc3 {[%clk 0:01:10]} 24. Qxc3 {[%clk 0:01:54]}  Qxc3 {[%clk 0:01:09]} 25. bxc3 {[%clk 0:01:55]}  Bh8 {[%clk 0:01:07]} 26. Bxf5 {[%clk 0:01:55]}  Re2 {[%clk 0:01:03]} 27. Bxd7+ {[%clk 0:01:53]}  Kxd7 {[%clk 0:01:03]} 28. Rf7+ {[%clk 0:01:37]}  Kc8 {[%clk 0:01:03]} 29. Rb1 {[%clk 0:01:35]}  b6 {[%clk 0:01:02]} 30. Rxa7 {[%clk 0:01:30]}  c5 {[%clk 0:00:53]} 31. Nf4 {[%clk 0:01:10]}  Rxh2 {[%clk 0:00:24]} 32. Nd5 {[%clk 0:01:10]}  Re8 {[%clk 0:00:23]} 33. Ra8+ {[%clk 0:00:57]}  Kd7 {[%clk 0:00:21]} 34. Nxb6+ {[%clk 0:00:57]}  Ke7 {[%clk 0:00:21]} 35. Re1+ {[%clk 0:00:57]}  Kf7 {[%clk 0:00:22]} 36. Raxe8 {[%clk 0:00:56]}  cxd4 {[%clk 0:00:22]} 37. Rxh8 {[%clk 0:00:56]} 1-0


[Site "https://www.chess.com"]

[Event "Titled Tuesday Blitz July 20 2021"]
[White "Vlassov, Nikolai"]
[Black "Kazakov, Mikhail"]
[WhiteFideId "4103360"]
[BlackFideId "14102749"]
[WhiteElo "2407"]
[BlackElo "2373"]
[Result "0-1"]
[Round "04"]
[TimeControl "180+1"]
[Date "2021.07.21"]
[WhiteClock "0:00:42"]
[BlackClock "0:00:17"]

1. e4 {[%clk 0:03:00]}  e5 {[%clk 0:02:57]} 2. Bc4 {[%clk 0:03:00]}  Nf6 {[%clk 0:02:54]} 3. d3 {[%clk 0:03:00]}  Nc6 {[%clk 0:02:53]} 4. Nf3 {[%clk 0:03:00]}  Be7 {[%clk 0:02:52]} 5. O-O {[%clk 0:03:00]}  O-O {[%clk 0:02:52]} 6. Re1 {[%clk 0:03:00]}  d6 {[%clk 0:02:52]} 7. a4 {[%clk 0:03:00]}  Na5 {[%clk 0:02:51]} 8. Ba2 {[%clk 0:02:59]}  c5 {[%clk 0:02:52]} 9. c3 {[%clk 0:02:52]}  Nc6 {[%clk 0:02:47]} 10. Nbd2 {[%clk 0:02:49]}  Be6 {[%clk 0:02:22]} 11. Bxe6 {[%clk 0:02:43]}  fxe6 {[%clk 0:02:23]} 12. Rb1 {[%clk 0:02:38]}  Qd7 {[%clk 0:02:22]} 13. b4 {[%clk 0:02:37]}  cxb4 {[%clk 0:02:19]} 14. cxb4 {[%clk 0:02:37]}  Rac8 {[%clk 0:02:14]} 15. b5 {[%clk 0:02:33]}  Nd8 {[%clk 0:02:12]} 16. Nc4 {[%clk 0:02:29]}  Nf7 {[%clk 0:02:02]} 17. Bd2 {[%clk 0:02:26]}  Bd8 {[%clk 0:01:45]} 18. Qb3 {[%clk 0:02:17]}  h6 {[%clk 0:01:37]} 19. Rec1 {[%clk 0:02:17]}  Bc7 {[%clk 0:01:33]} 20. Bb4 {[%clk 0:01:56]}  Bb8 {[%clk 0:01:30]} 21. Rc2 {[%clk 0:01:48]}  Rfe8 {[%clk 0:01:25]} 22. Rbc1 {[%clk 0:01:48]}  d5 {[%clk 0:01:20]} 23. Ncd2 {[%clk 0:01:47]}  Rxc2 {[%clk 0:01:17]} 24. Rxc2 {[%clk 0:01:46]}  Rc8 {[%clk 0:01:17]} 25. Rxc8+ {[%clk 0:01:38]}  Qxc8 {[%clk 0:01:16]} 26. Qc3 {[%clk 0:01:38]}  Qd7 {[%clk 0:01:12]} 27. Ne1 {[%clk 0:01:20]}  a6 {[%clk 0:01:04]} 28. bxa6 {[%clk 0:01:13]}  bxa6 {[%clk 0:01:04]} 29. Qb3 {[%clk 0:01:08]}  Ba7 {[%clk 0:01:02]} 30. h3 {[%clk 0:01:01]}  Nh5 {[%clk 0:00:48]} 31. g3 {[%clk 0:01:01]}  Nxg3 {[%clk 0:00:44]} 32. Kh2 {[%clk 0:00:52]}  Bxf2 {[%clk 0:00:40]} 33. Ndf3 {[%clk 0:00:48]}  Nh5 {[%clk 0:00:36]} 34. Ng2 {[%clk 0:00:45]}  Bg3+ {[%clk 0:00:32]} 35. Kg1 {[%clk 0:00:45]}  Qa7+ {[%clk 0:00:27]} 36. d4 {[%clk 0:00:43]}  dxe4 {[%clk 0:00:21]} 37. Qxe6 {[%clk 0:00:42]}  exf3 {[%clk 0:00:19]} 38. Qc8+ {[%clk 0:00:42]}  Kh7 {[%clk 0:00:17]} 39. Qf5+ {[%clk 0:00:42]}  g6 {[%clk 0:00:18]} 40. Qxf7+ {[%clk 0:00:42]}  Qxf7 {[%clk 0:00:17]} 0-1


[Site "https://www.chess.com"]

[Event "Titled Tuesday Blitz July 20 2021"]
[White "Volkov, Maksim"]
[Black "Vukovic, Zdravko"]
[WhiteFideId "54123070"]
[BlackFideId "900877"]
[WhiteElo "2113"]
[BlackElo "2588"]
[Result "0-1"]
[Round "04"]
[TimeControl "180+1"]
[Date "2021.07.21"]
[WhiteClock "0:00:07"]
[BlackClock "0:00:40"]

1. d4 {[%clk 0:02:44]}  d5 {[%clk 0:02:59]} 2. c4 {[%clk 0:02:43]}  e6 {[%clk 0:03:00]} 3. Nf3 {[%clk 0:02:40]}  Nf6 {[%clk 0:03:00]} 4. g3 {[%clk 0:02:40]}  dxc4 {[%clk 0:02:59]} 5. Bg2 {[%clk 0:02:39]}  Bb4+ {[%clk 0:03:00]} 6. Bd2 {[%clk 0:02:39]}  a5 {[%clk 0:03:00]} 7. O-O {[%clk 0:02:38]}  Nc6 {[%clk 0:03:01]} 8. a3 {[%clk 0:02:37]}  Bxd2 {[%clk 0:02:57]} 9. Qxd2 {[%clk 0:02:36]}  Rb8 {[%clk 0:02:55]} 10. Nc3 {[%clk 0:02:24]}  O-O {[%clk 0:02:50]} 11. Qg5 {[%clk 0:02:12]}  h6 {[%clk 0:02:47]} 12. Qc5 {[%clk 0:02:11]}  Qe7 {[%clk 0:02:30]} 13. Qxc4 {[%clk 0:02:10]}  Rd8 {[%clk 0:02:29]} 14. Rfd1 {[%clk 0:02:09]}  Bd7 {[%clk 0:02:12]} 15. Rac1 {[%clk 0:02:01]}  Be8 {[%clk 0:02:11]} 16. e4 {[%clk 0:01:49]}  b5 {[%clk 0:02:07]} 17. Nxb5 {[%clk 0:01:27]}  Nxe4 {[%clk 0:02:02]} 18. Nh4 {[%clk 0:01:18]}  Rxb5 {[%clk 0:01:55]} 19. Qxb5 {[%clk 0:01:06]}  Nxd4 {[%clk 0:01:54]} 20. Qd3 {[%clk 0:01:02]}  Nc5 {[%clk 0:01:49]} 21. Qc4 {[%clk 0:00:59]}  Bb5 {[%clk 0:01:44]} 22. Qxc5 {[%clk 0:00:57]}  Qxc5 {[%clk 0:01:37]} 23. Rxc5 {[%clk 0:00:53]}  Ne2+ {[%clk 0:01:37]} 24. Kh1 {[%clk 0:00:54]}  Rxd1+ {[%clk 0:01:36]} 25. Bf1 {[%clk 0:00:54]}  Rxf1+ {[%clk 0:01:29]} 26. Kg2 {[%clk 0:00:54]}  Rg1+ {[%clk 0:01:28]} 27. Kf3 {[%clk 0:00:50]}  Nd4+ {[%clk 0:01:25]} 28. Ke3 {[%clk 0:00:50]}  Re1+ {[%clk 0:01:23]} 29. Kxd4 {[%clk 0:00:48]}  c6 {[%clk 0:01:22]} 30. Rc2 {[%clk 0:00:41]}  Rd1+ {[%clk 0:01:18]} 31. Kc5 {[%clk 0:00:37]}  Ba4 {[%clk 0:01:15]} 32. Re2 {[%clk 0:00:35]}  Rd5+ {[%clk 0:01:12]} 33. Kb6 {[%clk 0:00:30]}  g5 {[%clk 0:01:12]} 34. Ng2 {[%clk 0:00:28]}  Bd1 {[%clk 0:00:58]} 35. Re1 {[%clk 0:00:25]}  Bf3 {[%clk 0:00:57]} 36. Ne3 {[%clk 0:00:24]}  Rb5+ {[%clk 0:00:57]} 37. Ka6 {[%clk 0:00:22]}  a4 {[%clk 0:00:57]} 38. Nc4 {[%clk 0:00:20]}  Bd5 {[%clk 0:00:54]} 39. Nb6 {[%clk 0:00:12]}  Rxb2 {[%clk 0:00:53]} 40. Nxa4 {[%clk 0:00:12]}  Rxf2 {[%clk 0:00:52]} 41. h4 {[%clk 0:00:12]}  Rf3 {[%clk 0:00:51]} 42. Ra1 {[%clk 0:00:10]}  Rxg3 {[%clk 0:00:49]} 43. hxg5 {[%clk 0:00:11]}  h5 {[%clk 0:00:45]} 44. Nc5 {[%clk 0:00:11]}  h4 {[%clk 0:00:45]} 45. Nd7 {[%clk 0:00:09]}  Bg2 {[%clk 0:00:39]} 46. Nf6+ {[%clk 0:00:08]}  Kf8 {[%clk 0:00:39]} 47. Nh5 {[%clk 0:00:08]}  Rxg5 {[%clk 0:00:39]} 48. Nf4 {[%clk 0:00:08]}  h3 {[%clk 0:00:39]} 49. Nxg2 {[%clk 0:00:05]}  hxg2 {[%clk 0:00:39]} 50. Rg1 {[%clk 0:00:05]}  f5 {[%clk 0:00:40]} 51. a4 {[%clk 0:00:05]}  f4 {[%clk 0:00:40]} 52. Kb6 {[%clk 0:00:06]}  f3 {[%clk 0:00:40]} 53. a5 {[%clk 0:00:07]} 0-1


[Site "https://www.chess.com"]